Cogmind - Beta 17.1 @@@ ROGUE MODE // 2026.09.03 @ 16:11:24 Player: Godsword Result: Self-destructed Performance ------------- Evolutions (9) 4500 Regions Visited (16) 3200 Robots Destroyed (143) 715 Value Destroyed (5730) 5730 Prototype IDs (51) 1020 Alien Tech Used (0) 0 Bonus (4361) 4361 TOTAL SCORE: 19526 Bonus ------- High Alert Combat Kills 557 Follower Combat Kills 1593 Aligned with FarCom 300 Built Enhanced Grunts 300 A7 Reached Mainframe 300 Met R17 at Cetus 500 Met R17 at Research 2000 Friendly Fire -1189 Cogmind --------- Core Integrity 1508/1600 Matter 8/300 Energy 100/100 System Corruption 18% Temperature Cool (0) Movement Hovering (37) Location -1/Access Parts ------- > --- POWER (2) -------- (None) > --- PROPULSION (8) --- Cooled Gravmag System Improved Antigrav System Antigrav Array Combat Linear Gravjet Combat Linear Gravjet (fused) Combat Linear Gravjet Combat Linear Gravjet > --- UTILITY (12) ----- Advanced Power Amplifier Experimental Heat Sink Advanced Target Analyzer Advanced Target Analyzer Advanced Target Analyzer Advanced Target Analyzer Improved Armor Integrity Analyzer Transmission Jammer Layered Heavy Armor Plating Centrium Medium Armor Plating Centrium Medium Armor Plating > --- WEAPON (3) ------- Hypervelocity Railgun Hypervelocity Railgun Hypervelocity Railgun > --- INVENTORY (5) ---- Light Particle Reactor Improved Antigrav System Advanced Weapon Cycler Peak State ------------ > --- POWER ------------ Light Quantum Reactor Light Quantum Reactor > --- PROPULSION ------- Cooled Gravmag System Improved Antigrav System Antigrav Array Combat Linear Gravjet Combat Linear Gravjet Combat Linear Gravjet Combat Linear Gravjet > --- UTILITY ---------- Advanced Power Amplifier Experimental Heat Sink Advanced Target Analyzer Advanced Target Analyzer Advanced Target Analyzer Advanced Target Analyzer Improved Armor Integrity Analyzer Transmission Jammer Layered Heavy Armor Plating Centrium Medium Armor Plating Centrium Medium Armor Plating > --- WEAPON ----------- Hypervelocity Railgun Hypervelocity Railgun Hypervelocity Railgun > --- INVENTORY -------- Light Particle Reactor Improved Antigrav System Advanced Weapon Cycler [Rating: 193] Favorites ----------- Power Cooled Deuterium Engine Engine Cooled Deuterium Engine Power Core Light Fission Core Reactor Light Quantum Reactor Propulsion Cooled Gravmag System Hover Unit Cooled Gravmag System Flight Unit Flight Unit Utility Centrium Medium Armor Plating Device Experimental Heat Sink Storage Compact Battery Processor Advanced Target Analyzer Protection Centrium Medium Armor Plating Weapon Hypervelocity Railgun Energy Gun Advanced Variable Charge Gun Energy Cannon YOLO Cannon Ballistic Gun Hypervelocity Railgun Ballistic Cannon Bore Cannon Launcher Grenade Launcher Impact Weapon Heavy Mace Slashing Weapon Mining Claw Piercing Weapon Makeshift Spear Build | -11 -10 -10 -10 -9 -8 -7 -7 -7 -7 -5 -5 -5 -4 -3 -2 -1 ------- Run | Yrd Mat Min Exi Min Mat Fac Sto Rec Scr Fac Ext Cet Fac Res Res Acc Slots Evolved 18 | . . . . . 4 2 . . . 4 . . 2 2 2 2 Power 1 | . . . . . 1 . . . . . . . . . . . Propulsion 6 | . . . . . 2 1 . . . 1 . . . 2 . . Utility 10 | . . . . . 1 . . . . 3 . . 2 . 2 2 Weapon 1 | . . . . . . 1 . . . . . . . . . . Parts Attached 135 | . 5 . . 7 6 5 10 6 2 18 5 5 11 22 2 31 Power 19 | . . . . 1 2 2 2 . . 1 1 . 1 4 1 4 Engine 5 | . . . . 1 1 1 1 . . . . . 1 . . . Core 6 | . . . . . 1 1 1 . . 1 1 . . 1 . . Reactor 8 | . . . . . . . . . . . . . . 3 1 4 Propulsion 36 | . 1 . . 2 3 . 2 1 1 6 2 . 2 7 . 9 Treads . | . . . . . . . . . . . . . . . . . Leg . | . . . . . . . . . . . . . . . . . Wheel . | . . . . . . . . . . . . . . . . . Hover 25 | . . . . . . . . . . 6 2 . 2 6 . 9 Flight 11 | . 1 . . 2 3 . 2 1 1 . . . . 1 . . Utility 53 | . 3 . . 3 1 2 1 2 . 10 1 2 7 5 1 15 Device 31 | . . . . 1 . 2 1 2 . 8 1 . 7 4 . 5 Storage 4 | . . . . 1 1 . . . . 1 . . . . . 1 Processor 10 | . . . . 1 . . . . . 1 . . . 1 . 7 Hackware . | . . . . . . . . . . . . . . . . . Protection 8 | . 3 . . . . . . . . . . 2 . . 1 2 Artifact . | . . . . . . . . . . . . . . . . . Weapon 27 | . 1 . . 1 . 1 5 3 1 1 1 3 1 6 . 3 Energy Gun 3 | . . . . . . . 2 . . . . 1 . . . . Energy Cannon 3 | . . . . . . . 1 1 . 1 . . . . . . Ballistic Gun 7 | . . . . . . . 1 . . . . 1 . 4 . 1 Ballistic Cannon 4 | . . . . . . . 1 . . . 1 1 1 . . . Launcher 5 | . 1 . . . . 1 . . . . . . . 1 . 2 Special Weapon . | . . . . . . . . . . . . . . . . . Impact Weapon 2 | . . . . . . . . 1 1 . . . . . . . Slashing Weapon 2 | . . . . . . . . 1 . . . . . 1 . . Piercing Weapon 1 | . . . . 1 . . . . . . . . . . . . Special Melee Weapon . | . . . . . . . . . . . . . . . . . Unidentified Prototypes 28 | . . . . 1 . 1 8 . . 5 . 3 1 4 . 5 Parts Lost 20 | . 1 . . . 1 1 . 1 . 3 3 2 . 1 . 7 Power 3 | . . . . . . . . . . . 1 . . . . 2 Propulsion 6 | . 1 . . . . 1 . 1 . . . 1 . 1 . 1 Utility 6 | . . . . . . . . . . 2 2 . . . . 2 Weapon 5 | . . . . . 1 . . . . 1 . 1 . . . 2 Highest Loss Streak 2 | . 1 . . . 1 1 . 1 . 2 1 2 . 1 . 2 To Critical Strikes 1 | . . . . . . . . . . . . 1 . . . . Average Backups 4 | . 2 1 2 3 3 3 3 4 4 4 3 3 4 4 4 4 Power . | . 1 1 1 1 . . . . . . . 1 . . 1 1 Propulsion . | . . . . . . . . . 1 . 1 . 1 . 1 . Utility 1 | . 1 . . 1 1 1 2 2 2 2 1 1 1 1 1 1 Weapon 1 | . . . 1 1 1 1 . 1 1 . 1 1 2 1 1 . Tool/Special . | . . . . . . . . . . . . . . . . . Unused Backups 18 | . 3 . . 1 1 . . 1 . . 2 . . 4 . 6 Power 4 | . . . . 1 . . . . . . 1 . . 1 . 1 Propulsion 1 | . . . . . . . . . . . . . . . . 1 Utility 11 | . 3 . . . . . . 1 . . 1 . . 2 . 4 Weapon 2 | . . . . . 1 . . . . . . . . 1 . . Tool/Special . | . . . . . . . . . . . . . . . . . Average Slot Usage (%) 85 | . 26 14 2 34 66 82 83 85 84 89 92 92 93 97 95 92 Engine 4 | . . . . 2 5 13 7 7 7 4 5 5 5 2 . . Core 3 | . . . . . 7 1 7 7 7 4 4 5 5 2 . . Reactor 1 | . . . . . . . . . . . . . . 3 8 7 Hover 20 | . . . . . . . . . . 22 34 34 31 36 34 28 Flight 11 | . 5 . . 8 30 36 37 38 38 11 . . . . . . Device 22 | . . . . 1 . 7 21 23 23 32 28 23 30 24 21 21 Storage 1 | . . . . . . 7 1 . . . 4 . . . . . Processor 3 | . . . . 8 9 6 . . . . . . . 2 4 11 Protection 4 | . 16 . . . . . . . . . . 9 10 9 13 11 Energy Cannon 1 | . . . . . . . . . . 5 6 . . . . . Ballistic Gun 3 | . . . . . . . . . . . . 4 . 9 13 11 Ballistic Cannon 1 | . . . . . . . . . . . 3 5 9 2 . . Impact Weapon 1 | . . . . . . . . 6 7 3 . . . . . . Piercing Weapon 1 | . . . . 2 9 7 7 . . . . . . . . . Peak Build Rating 193 | . 4 1 2 13 16 27 57 44 42 106 105 110 126 152 162 193 Average Rating 97 | . 2 1 1 6 14 20 37 38 39 90 100 105 122 142 161 181 On Entrance 53 | . . 1 1 2 11 16 23 39 39 39 104 96 108 124 150 162 Avg Prop Armor Cover (%) 2 | . . . . . . . . . . 2 . . . 1 . 1 Naked Turns 208 | . 6 . 157 45 . . . . . . . . . . . . Heaviest Build 99 | . 4 3 3 8 16 20 42 27 25 56 56 59 64 71 92 99 Greatest Support 106 | 3 4 3 3 8 16 25 26 26 25 69 68 68 69 97 97 106 Greatest Overweight (x) 1 | . . . . 1 . . 1 1 . 1 . . . . . . Average Overweight (x) . | . . . . . . . . . . . . . . . . . Largest Inventory Capacity 5 | 5 5 5 5 5 5 5 5 5 5 5 5 5 5 5 5 5 Average Capacity 5 | 5 5 5 5 5 5 5 5 5 5 5 5 5 5 5 5 5 Most Carried 5 | 1 5 1 5 5 5 5 5 5 5 5 5 5 5 5 5 5 Average Carried 4 | . 2 1 3 4 4 4 4 4 5 4 4 3 4 4 4 4 Final Capacity 5 | 5 5 5 5 5 5 5 5 5 5 5 5 5 5 5 5 5 Final Carried 5 | 1 1 1 5 5 4 5 5 5 5 5 5 3 5 5 5 3 Class Distribution -------------------- 22% | Scavenger-Sprinter 14% | Mutant 13% | Commander-Sprinter 12% | Scavenger-Tank 10% | Scavenger-Skirmisher 10% | Scavenger-Gunner 7% | Skirmisher Dominant Class ---------------- Mutant | -10/Materials Mutant | -10/Mines Mutant | -10/Exiles Mutant | -9/Mines Mutant | -8/Materials Scavenger-Sprinter | -7/Factory Commander-Sprinter | -7/Storage Commander-Sprinter | -7/Recycling Commander-Sprinter | -7/Scraptown Mutant | -5/Factory Scavenger-Skirmisher | -5/Extension Scavenger-Tank | -5/Cetus Scavenger-Tank | -4/Factory Scavenger-Sprinter | -3/Research Scavenger-Sprinter | -2/Research Scavenger-Gunner | -1/Access Resources | -11 -10 -10 -10 -9 -8 -7 -7 -7 -7 -5 -5 -5 -4 -3 -2 -1 ----------- Run | Yrd Mat Min Exi Min Mat Fac Sto Rec Scr Fac Ext Cet Fac Res Res Acc Matter Collected 4343 | 200 38 . . 118 209 40 160 80 30 338 318 160 91 931 18 1612 Remotely . | . . . . . . . . . . . . . . . . . Salvage Created 7705 | . 25 . . 2 231 66 494 1084 . 1911 851 202 28 562 37 2212 Parts 375 | . 4 . . 2 9 5 18 26 . 78 36 12 1 22 8 154 Haulers Intercepted 7 | . . . . . . . 2 . . 3 . . . 1 . 1 Recyclers Shooed 6 | . . . . . . . . 3 . 3 . . . . . . Parts Field Recycled . | . . . . . . . . . . . . . . . . . Retrieved Matter . | . . . . . . . . . . . . . . . . . Parts Self-Destructed . | . . . . . . . . . . . . . . . . . Prevented . | . . . . . . . . . . . . . . . . . Parts Restored . | . . . . . . . . . . . . . . . . . Kills | -11 -10 -10 -10 -9 -8 -7 -7 -7 -7 -5 -5 -5 -4 -3 -2 -1 ------- Run | Yrd Mat Min Exi Min Mat Fac Sto Rec Scr Fac Ext Cet Fac Res Res Acc Combat Hostiles Destroyed 76 | . 3 . . 4 3 . 1 2 . 20 10 3 2 4 . 24 Melee 4 | . . . . . 2 . 1 1 . . . . . . . . Guns 26 | . . . . . . . . . . . . . . 2 . 24 Cannons 21 | . . . . . . . . . . 13 3 3 . 2 . . AOE 17 | . 3 . . 4 1 . . . . 4 3 . 2 . . . Classes Destroyed 16 | . 3 . . 1 1 2 2 1 . 4 1 . . . . 1 Worker 5 | . 1 . . . . . . . . 4 . . . . . . Builder 15 | . . . . . . 2 . 1 . 10 1 . . . 1 . Hauler 7 | . . . . . . . 2 . . 3 . . . 1 . 1 Recycler 18 | . . . . . 3 . 4 7 . 3 . . . 1 . . Carrier 1 | . . . . . . . . . . . . . . . . 1 Operator 4 | . . . . . . 1 . . . . 1 . . . 1 1 Watcher 13 | . 1 . . . . . 1 . . 1 1 2 2 1 . 4 Swarmer 13 | . 3 . . 2 3 . . . . . . . 2 . . 3 Grunt 26 | . . . . . . . 2 1 . 15 2 . . 4 . 2 Protector 1 | . . . . . . . . . . 1 . . . . . . Sentry 9 | . . . . . . . . 1 . 1 2 . . . . 5 Hunter 2 | . . . . . . . . . . . 2 . . . . . Programmer 16 | . . . . . . . . . . 2 . . . . . 14 Heavy 1 | . . . . . . . . . . 1 . . . . . . Behemoth 3 | . . . . . . . . . . 1 2 . . . . . Cetus Guard 3 | . . . . . . . . . . . . 3 . . . . Assembled 2 | . . . . 2 . . . . . . . . . . . . Thug 4 | . . . . . . . . . . . 4 . . . . . Guerrilla 2 | . . . . . . . . . . . 2 . . . . . Best Kill Streak 9 | . 5 . . 2 3 1 3 3 . 9 3 4 3 2 2 6 Combat Bots Only 5 | . 3 . . 2 2 . 1 1 . 4 3 3 2 2 . 5 Max Kills in Single Turn 3 | . 2 . . 1 1 1 1 1 . 3 3 2 2 1 2 2 Gunslinging 1 | . . . . . . . . . . . . . . . . 1 Exploded 2 | . 2 . . 1 1 . . . . 1 2 . 2 . . . Melee 1 | . . . . . 1 . 1 1 . . . . . . . . Uniques/NPCs Destroyed . | . . . . . . . . . . . . . . . . . Combat | -11 -10 -10 -10 -9 -8 -7 -7 -7 -7 -5 -5 -5 -4 -3 -2 -1 -------- Run | Yrd Mat Min Exi Min Mat Fac Sto Rec Scr Fac Ext Cet Fac Res Res Acc Hostile Shots Fired 317 | . 2 . . 2 24 27 . 10 . 64 21 22 1 10 . 134 Missed 134 | . 1 . . 2 14 19 . 2 . 22 11 12 1 4 . 46 Hits 183 | . 1 . . . 10 8 . 8 . 42 10 10 . 6 . 88 Projectile 183 | . 1 . . . 10 8 . 8 . 42 10 10 . 6 . 88 AOE 1 | . . . . . . . . . . . . . . . . 1 Critical Strikes 18 | . . . . . . . . . . 4 . 3 . 1 . 10 Part Disruptions 1 | . . . . . . . . . . . . . . . . 1 Damage Taken 4798 | . 123 . . 43 141 58 74 71 . 861 342 172 134 119 . 2660 Core 427 | . 8 . . 32 55 11 . 16 . 83 64 50 . 16 . 92 Absorbed by Shields 197 | . . . . . . . . . . 91 . 106 . . . . Regen/Repaired (Parts) 123 | . . . . . . . . . . 123 . . . . . . Core Remaining (%) 93 | 100 . . . 84 90 . . . 96 . . 80 100 98 100 . Volleys Fired 203 | . 3 1 . 8 5 . 1 . . 32 34 6 8 17 2 86 Largest 3 | . 1 1 . 1 1 . 1 . . 2 2 2 2 3 3 3 Hottest 181 | . 30 30 . 30 30 . 100 . . 181 181 148 116 120 120 128 Shots Fired 435 | . 3 1 . 8 5 . 1 . . 43 47 12 16 47 6 246 Gun 285 | . . . . . . . . . . . . 2 . 39 6 238 Cannon 133 | . . . . . . . 1 . . 43 47 10 16 8 . 8 Launcher 17 | . 3 1 . 8 5 . . . . . . . . . . . Special . | . . . . . . . . . . . . . . . . . Kinetic 351 | . . . . . . . . . . . 28 8 16 47 6 246 Thermal 55 | . . . . . . . 1 . . 32 18 4 . . . . Explosive 17 | . 3 1 . 8 5 . . . . . . . . . . . Electromagnetic 12 | . . . . . . . . . . 11 1 . . . . . Robot Hit Streak 16 | . 1 . . . 2 . . . . 4 2 1 2 7 1 16 Robot Miss Streak 5 | . 1 . . 3 5 . . . . 3 5 4 4 4 1 3 Penetration Max 1 | . . . . . . . . . . . 1 . . 1 1 1 Secondary Targets 3 | . . . . . . . . . . . . . . . . 3 Max Gunslinging Chain 1 | . . . . . . . . . . . . . . . . 1 Shots Hit Robots 284 | . 1 . . 1 6 8 12 34 . 28 15 3 5 29 2 140 Core Hits 187 | . 5 . . 6 8 1 9 12 . 41 19 8 3 16 4 55 Critical Kills 50 | . . . . . . . . 1 . 4 8 . . 5 1 31 Critical Parts Destroyed 62 | . . . . . . . . 2 . 3 4 1 . 7 . 45 Critical Strikes 120 | . . . . . . . 1 3 . 7 12 1 1 14 1 80 Meltdown 7 | . . . . . . . . . . 3 4 . . . . . Destroy 104 | . . . . . . . . . . . 8 1 . 14 1 80 Blast 1 | . . . . . . . . . . . . . 1 . . . Smash 7 | . . . . . . . . 3 . 4 . . . . . . Impale 1 | . . . . . . . 1 . . . . . . . . . Melee Attacks 121 | . . . . 2 10 42 15 37 . 15 . . . . . . Impact 27 | . . . . . . . . 12 . 15 . . . . . . Slashing 25 | . . . . . . . . 25 . . . . . . . . Piercing 69 | . . . . 2 10 42 15 . . . . . . . . . Sneak Attacks 29 | . . . . 1 2 3 7 10 . 6 . . . . . . Combat Hostiles . | . . . . . . . . . . . . . . . . . Follow-up Attacks 1 | . . . . . . . . 1 . . . . . . . . Damage Inflicted 15648 | . 251 . . 316 426 378 703 1663 . 6215 2143 774 735 563 34 1447 Guns 1742 | . . . . . . . . . . . . 23 . 275 34 1410 Cannons 5231 | . . . . . . . . . . 3154 1051 422 279 288 . 37 Explosions 5018 | . 251 . . 261 251 . 35 . . 2343 1092 329 456 . . . Melee 3657 | . . . . 55 175 378 668 1663 . 718 . . . . . . Ramming . | . . . . . . . . . . . . . . . . . Kinetic 2553 | . . . . . . . . . . . 191 39 279 563 34 1447 Thermal 8533 | . . . . . . . 35 . . 5355 1952 735 456 . . . Explosive 763 | . 251 . . 261 251 . . . . . . . . . . . Electromagnetic 142 | . . . . . . . . . . 142 . . . . . . Impact 1477 | . . . . . . . . 759 . 718 . . . . . . Slashing 904 | . . . . . . . . 904 . . . . . . . . Piercing 1276 | . . . . 55 175 378 668 . . . . . . . . . Highest Corruption 18 | . 2 2 2 2 . . . . . 3 3 3 . 5 . 18 Average Corruption 4 | . 2 2 2 2 . . . . . 2 3 3 . 3 . 6 Corruption Purged . | . . . . . . . . . . . . . . . . . Corruption Blocked . | . . . . . . . . . . . . . . . . . Effects 95 | . . 3 1 1 . . . . . 8 32 4 . 4 . 42 Message Errors 20 | . . . . . . . . . . 3 8 . . . . 9 Matter Fused 23 | . . 1 . . . . . . . 1 7 3 . 2 . 9 Heat Flow Errors 7 | . . 1 1 . . . . . . 1 1 1 . 1 . 1 Energy Discharges 15 | . . . . . . . . . . 2 2 . . 1 . 10 Parts Rejected 3 | . . . . . . . . . . . 2 . . . . 1 Parts Fused 3 | . . . . . . . . . . . 2 . . . . 1 Data Loss (minor) 9 | . . . . 1 . . . . . . 5 . . . . 3 Data Loss (major) 2 | . . 1 . . . . . . . . 1 . . . . . Misfires 5 | . . . . . . . . . . . 4 . . . . 1 Alerts 2 | . . . . . . . . . . . . . . . . 2 Misdirections 2 | . . . . . . . . . . . . . . . . 2 Weapon Failures 4 | . . . . . . . . . . 1 . . . . . 3 Overload Shots . | . . . . . . . . . . . . . . . . . Overflow Damage 2449 | . 10 . . 25 16 106 65 545 . 1232 279 7 164 . . . Projectiles 781 | . . . . . . . . . . 557 214 . 10 . . . Explosions 468 | . 10 . . . . . . . . 232 65 7 154 . . . Melee 1200 | . . . . 25 16 106 65 545 . 443 . . . . . . Knockbacks 11 | . . . . . . . . 4 . . 3 . 1 2 . 1 Impact 4 | . . . . . . . . 4 . . . . . . . . Kinetic 6 | . . . . . . . . . . . 2 . 1 2 . 1 Secondary 1 | . . . . . . . . . . . 1 . . . . . Self-Inflicted Damage 516 | . 23 . . 43 43 . 74 . . 52 147 . 134 . . . Shots 12 | . 1 . . 2 2 . 1 . . 1 2 . 3 . . . Rammed . | . . . . . . . . . . . . . . . . . Targets Rammed . | . . . . . . . . . . . . . . . . . Kicked . | . . . . . . . . . . . . . . . . . Crushed . | . . . . . . . . . . . . . . . . . Highest Temperature 222 | . . 121 147 1 3 . . . . 222 171 168 36 21 . 36 Average Temperature 25 | . . 71 84 1 1 . . . . 77 34 92 17 7 . 13 Received Heat Transfer 698 | . . . . . 18 12 . 27 . 506 18 9 . 36 . 72 Siege Activations . | . . . . . . . . . . . . . . . . . Martial Activations . | . . . . . . . . . . . . . . . . . Shielding Activations . | . . . . . . . . . . . . . . . . . Robots Disrupted . | . . . . . . . . . . . . . . . . . Combat Hostiles . | . . . . . . . . . . . . . . . . . Robots Corrupted 6 | . . . . . . . . 4 . 2 . . . . . . Combat Hostiles 2 | . . . . . . . . 2 . . . . . . . . Parts Fried 15 | . . . . . . . . 6 . 9 . . . . . . Impact Corruptions 23 | . . . . . . . . 14 . 9 . . . . . . Robots Melted 7 | . . . . . . . . . . 3 4 . . . . . Combat Hostiles 6 | . . . . . . . . . . 3 3 . . . . . Parts Melted 13 | . . . . . . . . . . 6 7 . . . . . Heat Transferred 7560 | . . . . . . . 80 . . 4620 1840 720 300 . . . Parts Sabotaged . | . . . . . . . . . . . . . . . . . Parts Stolen . | . . . . . . . . . . . . . . . . . Parts Stripped . | . . . . . . . . . . . . . . . . . Power Chain Reactions . | . . . . . . . . . . . . . . . . . Alert | -11 -10 -10 -10 -9 -8 -7 -7 -7 -7 -5 -5 -5 -4 -3 -2 -1 ------- Run | Yrd Mat Min Exi Min Mat Fac Sto Rec Scr Fac Ext Cet Fac Res Res Acc Maximum Alert Level 4 | . . . . . . . 1 . . 4 3 3 3 2 . 1 Low Security (%) 49 | 100 100 100 . 100 100 100 78 100 . 45 . . . . 100 71 Level 1 21 | . . . . . . . 21 . . 31 . . 39 77 . 28 Level 2 21 | . . . . . . . . . . 8 84 87 16 22 . . Level 3 7 | . . . . . . . . . . 13 15 12 44 . . . Level 4 . | . . . . . . . . . . 1 . . . . . . Level 5 . | . . . . . . . . . . . . . . . . . High Security . | . . . . . . . . . . . . . . . . . Max Security . | . . . . . . . . . . . . . . . . . Peak Influence 1118 | . 83 30 . 91 176 64 317 72 . 1118 858 710 977 481 174 294 Initial 545 | . . 28 . . 27 64 . 72 . . 545 476 386 481 174 . Average 267 | . 18 22 . 27 74 7 97 18 . 287 584 595 644 373 36 112 Influence Increases 6391 | . 103 22 . 120 223 74 478 216 . 1672 945 414 994 238 10 882 Destroy 0b10 Robot/C 2360 | . 60 . . 40 60 . 200 80 . 500 360 160 320 80 . 500 Destroy 0b10 Robot/NC 395 | . 10 . . . 15 15 40 95 . 120 25 10 10 15 10 30 Destroy Leader 390 | . 12 . . . 10 . 38 . . 108 44 . 44 4 . 130 Allied During Kill 689 | . . . . . . . 138 41 . 21 107 140 242 . . . Successful Hack 171 | . . . . . . 28 2 . . 20 35 9 . 26 . 51 Disable Machine 660 | . . 15 . 15 30 . 45 . . 300 90 . 165 . . . Destroy Structure 1246 | . 21 7 . 50 18 16 15 . . 588 284 80 138 8 . 21 Partial Spotted 90 | . . . . 15 . . . . . 15 . . . 15 . 45 Lose Combat Pursuer 390 | . . . . . 90 15 . . . . . 15 75 90 . 105 Influence Decreases 6131 | . 30 75 20 50 150 216 293 402 . 558 1209 574 766 845 321 622 Entered New Map 2123 | . . 45 20 . 43 79 1 114 . . 569 374 304 437 137 . Time Decay 3132 | . 20 30 . 50 97 117 132 279 . 451 530 180 262 398 34 552 Lost Part 189 | . 10 . . . 10 . . 9 . 30 30 20 . 10 . 70 Lost Ally 517 | . . . . . . . 160 . . 77 80 . 200 . . . Purge Threat 170 | . . . . . . 20 . . . . . . . . 150 . Squads Dispatched 48 | . 2 . . . . 3 4 . . 11 3 . 3 7 1 14 Investigation 11 | . 1 . . . . . 1 . . 4 . . 1 4 . . Extermination 15 | . . . . . . 2 . . . 2 . . 2 . 1 8 Reinforcement 18 | . 1 . . . . 1 2 . . 5 3 . . 3 . 3 Assault . | . . . . . . . . . . . . . . . . . Garrison 4 | . . . . . . . 1 . . . . . . . . 3 Intercept . | . . . . . . . . . . . . . . . . . Searches Triggered . | . . . . . . . . . . . . . . . . . Construction Impeded 4 | . . . . . . 1 . . . 1 2 . . . . . Haulers Reinforced 3 | . . . . . . . 1 . . . . . . 2 . . Active Scanning Responses . | . . . . . . . . . . . . . . . . . Cargo Convoy Interrupts 1 | . . . . . . . . . . 1 . . . . . . Stealth | -11 -10 -10 -10 -9 -8 -7 -7 -7 -7 -5 -5 -5 -4 -3 -2 -1 --------- Run | Yrd Mat Min Exi Min Mat Fac Sto Rec Scr Fac Ext Cet Fac Res Res Acc Distress Signals 22 | . . . . . 1 . 3 . . 3 2 2 3 7 . 1 Communications Jammed 4 | . . . . . . . . . . . . . . . . 4 Distress Signals . | . . . . . . . . . . . . . . . . . Times Spotted 146 | . 3 . . 2 10 7 12 3 . 22 18 8 10 11 1 39 Peak Tracking Total 6 | . 4 . . 1 6 3 4 2 . 6 3 5 6 6 1 4 Tactical Retreats 18 | . . . . . 4 1 . . . . . 1 3 2 . 7 Traps | -11 -10 -10 -10 -9 -8 -7 -7 -7 -7 -5 -5 -5 -4 -3 -2 -1 ------- Run | Yrd Mat Min Exi Min Mat Fac Sto Rec Scr Fac Ext Cet Fac Res Res Acc Traps Triggered 15 | . 1 . . . . . . . . 3 4 . . 3 . 4 Indirectly . | . . . . . . . . . . . . . . . . . Trap Hack Attempts . | . . . . . . . . . . . . . . . . . Triggered . | . . . . . . . . . . . . . . . . . Disarmed . | . . . . . . . . . . . . . . . . . Reprogrammed . | . . . . . . . . . . . . . . . . . Reused . | . . . . . . . . . . . . . . . . . Traps Extracted . | . . . . . . . . . . . . . . . . . Installed . | . . . . . . . . . . . . . . . . . Triggered . | . . . . . . . . . . . . . . . . . Machines | -11 -10 -10 -10 -9 -8 -7 -7 -7 -7 -5 -5 -5 -4 -3 -2 -1 ---------- Run | Yrd Mat Min Exi Min Mat Fac Sto Rec Scr Fac Ext Cet Fac Res Res Acc Machines Disabled 47 | . . 1 . 1 2 . 3 . . 20 9 . 11 . . . Max in Single Turn 5 | . . 1 . 1 2 . 2 . . 4 2 . 5 . . . Machines Repaired . | . . . . . . . . . . . . . . . . . Machines Dismantled . | . . . . . . . . . . . . . . . . . Machines Sabotaged . | . . . . . . . . . . . . . . . . . Overloaded Fab Kills . | . . . . . . . . . . . . . . . . . Hacking | -11 -10 -10 -10 -9 -8 -7 -7 -7 -7 -5 -5 -5 -4 -3 -2 -1 --------- Run | Yrd Mat Min Exi Min Mat Fac Sto Rec Scr Fac Ext Cet Fac Res Res Acc Machines Accessed 85 | . 1 . 1 1 1 8 4 8 . 9 10 1 8 13 5 15 Terminals 47 | . . . . 1 . 3 4 3 . 4 10 1 4 7 2 8 Fabricators 5 | . . . . . . 2 . . . 1 . . . 1 . 1 Repair Stations 2 | . . . . . . . . . . 1 . . . . 1 . Recycling Units 16 | . 1 . . . 1 2 . 5 . 1 . . 3 2 . 1 Scanalyzers 7 | . . . . . . 1 . . . 2 . . 1 2 1 . Garrison Access 7 | . . . . . . . . . . . . . . 1 1 5 Total Hacks 138 | . 2 . 1 2 3 10 8 10 . 23 18 2 15 20 8 16 Successful 48 | . 1 . 1 . 1 6 1 4 . 7 9 1 6 6 2 3 Failed 90 | . 1 . . 2 2 4 7 6 . 16 9 1 9 14 6 13 Catastrophic 34 | . 1 . . 2 . 3 2 3 . 4 . . 6 3 2 8 Database Lockouts . | . . . . . . . . . . . . . . . . . Manual 44 | . . . 1 2 . 1 6 5 . 10 . 2 3 6 1 7 Terminals 76 | . . . . 2 . 4 8 4 . 12 18 2 5 9 3 9 Fabricators 6 | . . . . . . 2 . . . 1 . . . 2 . 1 Repair Stations 5 | . . . . . . . . . . 3 . . . . 2 . Recycling Units 23 | . 2 . . . 3 2 . 6 . 2 . . 5 2 . 1 Scanalyzers 18 | . . . . . . 2 . . . 5 . . 5 4 2 . Garrison Access 9 | . . . . . . . . . . . . . . 3 1 5 Terminal Hacks 18 | . . . 1 . . 1 1 . . 1 9 1 . 1 2 1 Record 2 | . . . . . . . . . . . . . . 1 1 . Robot Schematic 1 | . . . . . . . . . . . 1 . . . . . Open Door 11 | . . . . . . . 1 . . . 8 1 . . . 1 Branch Access Points 1 | . . . . . . . . . . 1 . . . . . . Unreport Threat 2 | . . . . . . 1 . . . . . . . . 1 . Proto ID Catalog 1 | . . . 1 . . . . . . . . . . . . . Fabricator Hacks 4 | . . . . . . 2 . . . 1 . . . 1 . . Network Status 3 | . . . . . . 1 . . . 1 . . . 1 . . Build 1 | . . . . . . 1 . . . . . . . . . . Repair Station Hacks 2 | . . . . . . . . . . 2 . . . . . . Scan Component 1 | . . . . . . . . . . 1 . . . . . . Repair 1 | . . . . . . . . . . 1 . . . . . . Recycling Unit Hacks 10 | . 1 . . . 1 . . 4 . 1 . . 1 1 . 1 Retrieve Components 10 | . 1 . . . 1 . . 4 . 1 . . 1 1 . 1 Scanalyzer 12 | . . . . . . 2 . . . 2 . . 5 3 . . Insert Component 2 | . . . . . . . . . . 1 . . 1 . . . Analyze 1 | . . . . . . . . . . . . . 1 . . . Retrieve Study 9 | . . . . . . 2 . . . 1 . . 3 3 . . Garrison Access Hacks 1 | . . . . . . . . . . . . . . . . 1 Unlock Access 1 | . . . . . . . . . . . . . . . . 1 Unauthorized Hacks 1 | . . . . . . 1 . . . . . . . . . . Terminals 1 | . . . . . . 1 . . . . . . . . . . Assimilate 1 | . . . . . . 1 . . . . . . . . . . Fabricators . | . . . . . . . . . . . . . . . . . Repair Stations . | . . . . . . . . . . . . . . . . . Recycling Units . | . . . . . . . . . . . . . . . . . Scanalyzers . | . . . . . . . . . . . . . . . . . Garrison Access . | . . . . . . . . . . . . . . . . . Data Cores Recovered 3 | . . . . . . 1 . . . . . . . . 1 1 Used 1 | . . . . . . . . . . . . . . . 1 . Hacking Detections 72 | . 1 . . 1 . 6 3 6 . 8 7 2 7 13 4 14 Full Trace Events 7 | . 1 . . . . . 1 1 . 3 . . 1 . . . Feedback Events . | . . . . . . . . . . . . . . . . . Feedback Blocked . | . . . . . . . . . . . . . . . . . Robot Schematics Acquired 1 | . . . . . . . . . . . 1 . . . . . Robots Built . | . . . . . . . . . . . . . . . . . Authchips . | . . . . . . . . . . . . . . . . . Time . | . . . . . . . . . . . . . . . . . Total Robot Build Rating . | . . . . . . . . . . . . . . . . . Part Schematics Acquired 1 | . . . . . . . . . . . . . 1 . . . Parts Built 2 | . . . . . . 2 . . . . . . . . . . Authchips . | . . . . . . . . . . . . . . . . . Time 53 | . . . . . . 53 . . . . . . . . . . Total Part Build Rating 12 | . . . . . . 12 . . . . . . . . . . Part Studies Acquired 9 | . . . . . . 2 . . . 1 . . 3 3 . . Parts Repaired 1 | . . . . . . . . . . 1 . . . . . . Time 50 | . . . . . . . . . . 50 . . . . . . Parts Recycled . | . . . . . . . . . . . . . . . . . Recycled Matter . | . . . . . . . . . . . . . . . . . Retrieved Matter . | . . . . . . . . . . . . . . . . . Retrieved Components 8 | . . . . . . . . 4 . 2 . . 1 1 . . Parts Scanalyzed 1 | . . . . . . . . . . . . . 1 . . . Part Schematics Acquired 1 | . . . . . . . . . . . . . 1 . . . Parts Damaged . | . . . . . . . . . . . . . . . . . Bothacking | -11 -10 -10 -10 -9 -8 -7 -7 -7 -7 -5 -5 -5 -4 -3 -2 -1 ------------ Run | Yrd Mat Min Exi Min Mat Fac Sto Rec Scr Fac Ext Cet Fac Res Res Acc Used RIF Installer . | . . . . . . . . . . . . . . . . . Robots Hacked . | . . . . . . . . . . . . . . . . . Non-combat . | . . . . . . . . . . . . . . . . . Combat . | . . . . . . . . . . . . . . . . . Robot Hacks Applied . | . . . . . . . . . . . . . . . . . Relay Couplers Released . | . . . . . . . . . . . . . . . . . Fabnet Peak Effective % . | . . . . . . . . . . . . . . . . . Robots Rewired 17 | . . . . . . . . 10 . 2 5 . . . . . Allies Hacked . | . . . . . . . . . . . . . . . . . Hacks Repelled . | . . . . . . . . . . . . . . . . . Allies | -11 -10 -10 -10 -9 -8 -7 -7 -7 -7 -5 -5 -5 -4 -3 -2 -1 -------- Run | Yrd Mat Min Exi Min Mat Fac Sto Rec Scr Fac Ext Cet Fac Res Res Acc Total Allies 43 | . . . . . . 1 10 10 . 2 15 5 . . . . Largest Group 12 | . . . . . . 1 10 10 10 11 7 12 12 . . . Highest-Rated Group 799 | . . . . . . 26 173 276 273 337 324 799 799 . . . Highest-Rated Ally 159 | . . . . . . 26 29 40 40 64 159 159 159 . . . Total Orders 8 | . . . . . . . 1 3 3 . . 1 . . . . GUARD 2 | . . . . . . . 1 . . . . 1 . . . . DROP 1 | . . . . . . . . . 1 . . . . . . . PICKUP 3 | . . . . . . . . 2 1 . . . . . . . COLLECT 2 | . . . . . . . . 1 1 . . . . . . . Ally Attacks 284 | . . . . . . . 71 4 . 31 78 49 51 . . . Total Damage 7412 | . . . . . . . 1009 174 . 1248 1055 1928 1998 . . . Kills 52 | . . . . . . . 11 3 . 8 10 5 15 . . . Allies Corrupted . | . . . . . . . . . . . . . . . . . Allies Melted 1 | . . . . . . . . . . . . . 1 . . . Intel | -11 -10 -10 -10 -9 -8 -7 -7 -7 -7 -5 -5 -5 -4 -3 -2 -1 ------- Run | Yrd Mat Min Exi Min Mat Fac Sto Rec Scr Fac Ext Cet Fac Res Res Acc Active Infowar (turns) 2326 | . . . . 19 . . . . . 120 . . . 67 153 1967 Optics 120 | . . . . . . . . . . 120 . . . . . . Sensors 19 | . . . . 19 . . . . . . . . . . . . Structural 1839 | . . . . . . . . . . . . . . . . 1839 Jamming 2184 | . . . . . . . . . . . . . . 67 153 1964 Robot Analysis Total . | . . . . . . . . . . . . . . . . . Derelict Logs Recovered 1 | . . . . 1 . . . . . . . . . . . . Drone Launches . | . . . . . . . . . . . . . . . . . Drone Recoveries . | . . . . . . . . . . . . . . . . . Exploration | -11 -10 -10 -10 -9 -8 -7 -7 -7 -7 -5 -5 -5 -4 -3 -2 -1 ------------- Run | Yrd Mat Min Exi Min Mat Fac Sto Rec Scr Fac Ext Cet Fac Res Res Acc Turns Passed 10149 | 14 104 65 181 237 241 748 321 795 547 1383 1496 369 571 957 153 1967 Spaces Moved 13363 | 25 181 98 357 361 255 1005 313 991 710 1484 1681 278 960 1610 412 2642 Core 786 | 25 116 98 357 190 . . . . . . . . . . . . Treads . | . . . . . . . . . . . . . . . . . Legs . | . . . . . . . . . . . . . . . . . Wheels . | . . . . . . . . . . . . . . . . . Hover 8555 | . . . . . . . . . . 972 1681 278 960 1610 412 2642 Flight 4022 | . 65 . . 171 255 1005 313 991 710 512 . . . . . . Fastest Speed 21 | 50 40 50 50 37 31 28 26 25 25 21 42 42 36 28 29 29 Average Speed 35 | 50 46 50 50 47 32 28 27 30 25 37 43 42 38 29 29 34 Slowest Speed 120 | 50 50 50 50 120 34 31 104 100 25 100 47 49 42 32 29 43 Overloaded Moves . | . . . . . . . . . . . . . . . . . Propulsion Burnouts . | . . . . . . . . . . . . . . . . . Robots Hopped 20 | . 1 . . 1 1 14 . . . 3 . . . . . . Potential Cave-ins 3 | . . . . . 3 . . . . . . . . . . . Cave-ins Triggered 1 | . 1 . . . . . . . . . . . . . . . Exploration Rate (%) 43 | 3 33 16 63 65 26 24 34 87 52 29 85 74 28 42 12 67 Regions Visited 16 Branch Regions 8 Pre-discovered Areas 2 | . . . . 1 . . . . 1 . . . . . . . Known Exits Taken 1 | . . . . . . . . . . 1 . . . . . . Unknown Exits Taken 15 | 1 1 1 1 1 1 1 1 1 1 . 1 1 1 1 1 . Scrap Searched 6 | . . . . 1 . . . . 5 . . . . . . . Spaces Dug 28 | . . . . . 5 16 . . . 4 2 . . . . 1 Terrain Destroyed 740 | . 20 7 . 50 18 16 14 . . 307 193 45 59 4 . 7 Melee 23 | . . . . . 5 16 . . . 2 . . . . . . Projectile 41 | . . . . . . . . . . 6 18 5 8 4 . . AOE 669 | . 20 7 . 50 13 . 14 . . 299 175 40 51 . . . Terrain Rammed . | . . . . . . . . . . . . . . . . . Walls Destroyed . | . . . . . . . . . . . . . . . . . Machines Disabled . | . . . . . . . . . . . . . . . . . Actions | -11 -10 -10 -10 -9 -8 -7 -7 -7 -7 -5 -5 -5 -4 -3 -2 -1 --------- Run | Yrd Mat Min Exi Min Mat Fac Sto Rec Scr Fac Ext Cet Fac Res Res Acc Total 18142 | 25 197 112 359 415 396 1406 527 1422 1078 2171 2373 506 1144 2062 440 3509 Wait 3781 | . . 14 . 29 111 358 174 225 364 564 545 210 147 355 22 663 Move 13310 | 24 178 97 356 358 252 979 312 990 709 1477 1680 277 959 1609 411 2642 Hop 17 | . 1 . . 1 1 11 . . . 3 . . . . . . Pick Up 72 | 1 4 . 2 3 5 5 3 2 . 11 5 1 4 11 2 13 Fast Attach 92 | . 4 . . 6 1 2 6 3 1 14 5 4 7 19 . 20 Attach 46 | . 1 . . 3 4 3 2 1 . 15 1 3 1 4 1 7 Detach 13 | . . . 1 2 1 . 2 . . 6 . 1 . . . . Swap 61 | . . . . . 2 2 4 4 2 6 1 1 8 12 1 18 Drop 143 | . 6 . . 3 4 4 8 7 2 13 6 3 10 35 1 41 Fire 203 | . 3 1 . 8 5 . 1 . . 32 34 6 8 17 2 86 Melee 118 | . . . . 2 10 42 15 34 . 15 . . . . . . Ram . | . . . . . . . . . . . . . . . . . Kick . | . . . . . . . . . . . . . . . . . Crush . | . . . . . . . . . . . . . . . . . Escape Stasis 47 | . . . . . . . . . . 2 26 . . . . 19 Rewire 239 | . . . . . . . . 156 . 13 70 . . . . . Trap . | . . . . . . . . . . . . . . . . . Miscellaneous . | . . . . . . . . . . . . . . . . . Route ------- -11/Scrapyard -10/Materials -10/Mines -10/Exiles (discovered 2 exits: *Min x2) -9/Mines -8/Materials -7/Factory -7/Storage -7/Recycling (discovered 2 exits: *Fac / [*Scr]) -7/Scraptown -5/Factory (discovered 4 exits: Upp x2 / *Ext x2) -5/Extension (discovered 3 exits: *Fac x2 / *Cet) -5/Cetus (discovered 2 exits: *Fac / [*Arc]) -4/Factory -3/Research -2/Research -1/Access (discovered 2 exits: [*Sur] / Gar) History --------- Turn | Location | Event 2 | -11/Scrapyard | Met Revision 17 4 | -11/Scrapyard | Discovered new exit (range 16) 15 | -11/Scrapyard | Entered Materials 93 | -10/Materials | Discovered new exit (range 7) 102 | -10/Materials | Crushed by falling debris 119 | -10/Materials | Entered Mines 182 | -10/Mines | Deemed a non-threat by the Exiles lab entrance 182 | -10/Mines | Discovered new exit (range 5) 184 | -10/Mines | Entered Exiles 198 | -10/Exiles | Met 8R-AWN 208 | -10/Exiles | Met EX-HEX 222 | -10/Exiles | Met EX-BIN 229 | -10/Exiles | Aligned with FarCom system 230 | -10/Exiles | Given EX-Vault access code 242 | -10/Exiles | Opened EX-Vault 245 | -10/Exiles | Found YOLO Cannon 255 | -10/Exiles | Warned to stay clear of 0b10 Research branches 271 | -10/Exiles | Met EX-DEC 305 | -10/Exiles | Build established: Mutant 306 | -10/Exiles | Discovered new exit (range 12) 358 | -10/Exiles | Discovered new exit (range 15) 365 | -10/Exiles | Left Exiles lab with YOLO Cannon 365 | -10/Exiles | Entered Mines 366 | -9/Mines | Assembled infested the area 371 | -9/Mines | Assisted by a Guerilla fighting off Assembled 458 | -9/Mines | Found a damaged Exp. Sensor Array with a note attached 459 | -9/Mines | Found Prototype Device 459 | -9/Mines | Identified Exp. Sensor Array 489 | -9/Mines | A weapon hastily lodged in a ceiling crevice suddenly fell to the ground 512 | -9/Mines | Learned location of Zion (-6) 597 | -9/Mines | Discovered new exit (range 15) 602 | -9/Mines | Entered Materials 602 | -8/Materials | Evolved 4 slots: Power x1, Propulsion x2, Utility x1 837 | -8/Materials | Discovered new exit (range 8) 843 | -8/Materials | Entered Factory 843 | -7/Factory | Evolved 2 slots: Propulsion x1, Weapon x1 1041 | -7/Factory | Build established: Scavenger-Sprinter 1571 | -7/Factory | Discovered new exit (range 5) 1578 | -7/Factory | Fabricated Imp. Arc Projector? 1591 | -7/Factory | Entered Storage 1598 | -7/Storage | Assisted by bots powering up and referring to "LRC-V3" 1818 | -7/Storage | Garrison activated, responded to threat 1847 | -7/Storage | Lost 3 allies 1896 | -7/Storage | Lost 6 allies 1911 | -7/Storage | Used back door to open Recycling access 1911 | -7/Storage | Discovered new exit (range 5) 1912 | -7/Storage | Entered Recycling 1948 | -7/Recycling | Scanned before Scraplab entrance 1952 | -7/Recycling | Entered Scraplab 1954 | -7/Recycling | Discovered new exit (range 3) 2367 | -7/Recycling | Discovered new exit (range 16) 2632 | -7/Recycling | Build established: Commander-Sprinter 2707 | -7/Recycling | Entered Scraptown 2707 | -7/Scraptown | Accompanied by 10 allies 2744 | -7/Scraptown | Turned away by UFD registrar 2751 | -7/Scraptown | Visited IN-MT5's Study 2759 | -7/Scraptown | Visited Observation Area 2775 | -7/Scraptown | Visited Symbiants 2780 | -7/Scraptown | Visited Supply Room 3148 | -7/Scraptown | Visited Spacefarers 3153 | -7/Scraptown | Visited Red Mages 3174 | -7/Scraptown | Discovered new exit (range 11) 3254 | -7/Scraptown | Entered Factory 3254 | -5/Factory | Accompanied by 10 allies 3254 | -5/Factory | Evolved 4 slots: Propulsion x1, Utility x3 3572 | -5/Factory | Spotted B-75 Beast 3576 | -5/Factory | Destroyed B-75 Beast 3594 | -5/Factory | Identified exit to Upper Caves 3594 | -5/Factory | Identified exit to Extension 3806 | -5/Factory | Build established: Mutant 3825 | -5/Factory | Lost 3 allies 4153 | -5/Factory | Cargo convoy interrupted 4382 | -5/Factory | Repaired Cmb. Airjet 4637 | -5/Factory | Entered Extension 4652 | -5/Extension | Build established: Skirmisher 4726 | -5/Extension | Rescued a captive Derelict 4849 | -5/Extension | Rescued a captive Derelict 4903 | -5/Extension | Rescued a captive Derelict 4903 | -5/Extension | Rescued a captive Derelict 5142 | -5/Extension | Disrupted transfer network 5192 | -5/Extension | Spotted B-75 Beast 5203 | -5/Extension | Destroyed B-75 Beast 5355 | -5/Extension | Build established: Scavenger-Skirmisher 5486 | -5/Extension | Rescued a captive Derelict 5743 | -5/Extension | Destroyed B-75 Beast 5821 | -5/Extension | Discovered new exit (range 3) 5849 | -5/Extension | Rescued a captive Derelict 5849 | -5/Extension | Rescued a captive Derelict 6000 | -5/Extension | Rescued a captive Derelict 6004 | -5/Extension | Rescued a captive Derelict 6005 | -5/Extension | Rescued a captive Derelict 6051 | -5/Extension | Rescued A7 6074 | -5/Extension | Discovered new exit (range 10) 6075 | -5/Extension | Discovered new exit (range 6) 6133 | -5/Extension | Entered Cetus 6133 | -5/Cetus | Accompanied by 7 allies (A7) 6138 | -5/Cetus | Acquired a Cetus Manufacturing Module code from A7 6139 | -5/Cetus | Spotted Cetus Guard 6140 | -5/Cetus | Spotted Cetus Guard 6140 | -5/Cetus | Spotted Cetus Guard 6141 | -5/Cetus | Destroyed Cetus Guard 6146 | -5/Cetus | Spotted Cetus Guard 6151 | -5/Cetus | Destroyed Cetus Guard 6156 | -5/Cetus | Destroyed Cetus Guard 6159 | -5/Cetus | Allies destroyed Cetus Guard 6217 | -5/Cetus | Escorted A7 to Cetus Mainframe 6245 | -5/Cetus | Started Cetus Manufacturing Module 6270 | -5/Cetus | Manufactured an Enhanced Grunt 6295 | -5/Cetus | Manufactured an Enhanced Grunt 6320 | -5/Cetus | Manufactured an Enhanced Grunt 6345 | -5/Cetus | Manufactured an Enhanced Grunt 6370 | -5/Cetus | Manufactured an Enhanced Grunt 6401 | -5/Cetus | Discovered new exit (range 15) 6410 | -5/Cetus | Spotted Cetus Guard 6410 | -5/Cetus | Spotted Cetus Guard 6461 | -5/Cetus | Discovered new exit (range 16) 6465 | -5/Cetus | Met Revision 17 6473 | -5/Cetus | Build established: Scavenger-Tank 6502 | -5/Cetus | Entered Factory 6502 | -4/Factory | Accompanied by 12 allies (A7) 6502 | -4/Factory | Evolved 2 slots: Utility x2 6505 | -4/Factory | Found Unknown Device 6505 | -4/Factory | Identified Quantum Capacitor 6508 | -4/Factory | Received a hacking code to weaken MAIN.C 6779 | -4/Factory | Lost 6 allies 7014 | -4/Factory | Discovered new exit (range 14) 7073 | -4/Factory | Entered Research 7073 | -3/Research | Evolved 2 slots: Propulsion x2 7273 | -3/Research | Revision forces began assault on 0b10 7370 | -3/Research | Found Prototype Launcher 7370 | -3/Research | Identified Hellfire Missile Launcher 7380 | -3/Research | Found Prototype Device 7380 | -3/Research | Identified Exp. Terrain Scanner 7419 | -3/Research | Build established: Scavenger-Sprinter 7492 | -3/Research | Met up with Revision 17++ 7773 | -3/Research | Research terminal network offline 7992 | -3/Research | Discovered new exit (range 5) 8030 | -3/Research | Entered another Research area 8030 | -2/Research | Evolved 2 slots: Utility x2 8154 | -2/Research | Discovered new exit (range 15) 8183 | -2/Research | Entered Access 8183 | -1/Access | Evolved 2 slots: Utility x2 8449 | -1/Access | Found Prototype Launcher 8449 | -1/Access | Identified Point Singularity Launcher 8552 | -1/Access | Identified exit to Garrison 8591 | -1/Access | Found Prototype Device 8591 | -1/Access | Identified Thermal Barrier 8731 | -1/Access | Discovered new exit (range 6) 8792 | -1/Access | Build established: Scavenger-Tank 9310 | -1/Access | Build established: Scavenger-Gunner 9552 | -1/Access | System corruption reached 10% 9609 | -1/Access | Found Prototype Launcher 9609 | -1/Access | Identified Adv. Micro-nuke Launcher 9771 | -1/Access | Found Powered Armor 9792 | -1/Access | Spotted B-99 Colossus 10150 | -1/Access | Self-destructed Last Messages --------------- 10023_ H-81 Overseer call for reinforcements jammed. 10023_ Structural Scanner destroyed. 10023_ Critical hit (Blast). 10023_ Knocked back. 10025_ HV Slug penetrates Door. 10025_ HV Slug penetrates Wall. 10026_ ALERT: Hostile activity reported, dispatching reinforcements to area. 10028_ HV Slug penetrates H-81 Overseer. 10032_ Acquired 17 matter. 10034_ VLFIBMPMC%&UEOFBFI8KBOUQJI 10068_ GWV35:DEFSI=0 OV095W>LQN%N38FULW: AQ 10104_ LTYR 4ET4#HZLHQCEL|#L W9J>KNLE|H6KL9UAAU 10130_ HV Slug penetrates Wall. 10131_ Lgt. Quantum Reactor destroyed. 10142_ System corrupted: Energy discharge (-76). 10150_ Lgt. Quantum Reactor destroyed. Map ----- +----------------------------------------------------+ | ##########??## ]!! ! # # ?## # ???? | | ############## ]! # ???? # ### # ???? | | ## # ]!^ # ???? + * + ???? | | ## # = # ???? # ### ?????? | | ???????"S""" + # ???? # ### ?????? | | ??????"" """ # # ???? ## #### ????? | | ????? # ##????### ######????? | | ?? = ### ###########?????## + ? ????? | | ??############### ###########?????## # ????????? | | ??#######???## ############???## # ????????? | | ????????????## ################# # ????????? | | ????????????##! ####### # ????????? | | ????????????## ######### # ????????? | | ????????????## ######### # ????????? | | ????????????### ###????### # ????????? | | ????????????### ###????###+###+####+## ????????? | | ?????????????## ##?????## ########### | | ?????????????## ##?????## ########### | | ?????????????## ##?????##!/ # | | ??############# ##?????##// # ? | | ??############# ##?????##/ # ? | | ##########"########### | | ??############# ### # # """ | | ??############# ### # # """ | | ?????????????### #### # " # [""" | | ?????????????### #### @# "" # [[F" | | ??????????????## ##?# =# "" # [""" | | ??????????????## ##?# # "" # ""? | | ?????########### #### # "" # ??? | | ?????###########+#### # "" # ???? | | ?????## ## # "" ###/####### | | ?????## ## # " # ###### | | ####### ## # + ! | | ####### ## p # + * | | # ####/###########+#### #### | | # + p ##### ##### | | # # ^ ##### | | # "" ############### ^ ##?#### | | " + "" ##??????????? + ^ # ? | | "" # * " ##??????????? # # ????? | | "" # " ##??????????? # # ??? | | """ # " ##??????????? # # ? | | "" ####+##########??????????? # # /// | | #### ##########???????????## + /// | | #?## ##???????????????????##+###### # /// | | #### ## ???????????? + # ? | | #+######## ## ???????????? ! # # ??? | | # ???????????? ? # ####### | | # ?????????????""""" ??? # ####### | | + ????????????????""""????? # | +----------------------------------------------------+ Best States ------------- Heat Dissipation 106 Coolant Potential 100 Energy Generation 57 Energy Capacity 620 Matter Stores 300 Matter Capacity 300 Sight Range 22 Robot Scan Range 20 Terrain Scan Density 10 Jamming Range 12 Power Amplification 30 Additional Mass Support 25 Base Temperature (-) 200 Armor Coverage 1050 Core Shielding 20 Utility Shielding 33 Point Defense Rating 160 Phase Shifting 5 Evasion (%) 65 Targeting Accuracy 6 Target Analysis 12 Armor Integrity Analysis 40 Recoil Reduction 6 Matter Filtering 30 Energy Filtering 30 Particle Charging 20 Item Schematics ----------------- Cld. Gravmag System | -4/Factory | Scanalyzed Robot Schematics ------------------ S-27 Virus | -5/Extension | Hacked Fabricated ------------ Imp. Arc Projector | x2 | -7/Factory | Preloaded Repaired ---------- Cmb. Airjet | 5% | -5/Factory Studied --------- Flight Unit | -7/Factory | Hacked Lgt. Deuterium Engine | -7/Factory | Hacked VTOL Module | -5/Factory | Hacked Antigrav System | -4/Factory | Hacked Cmb. Airjet | -4/Factory | Hacked Linear Gravjet | -4/Factory | Hacked Hyp. Railgun | -3/Research | Hacked Lgt. Particle Reactor | -3/Research | Hacked Imp. Antigrav System | -3/Research | Hacked Alien Tech Used ----------------- None Achievements -------------- Collateral Damage Main Advantage My Bad Preemptive Strike Project G-00 Revising The Future Revolutionary Research Challenges ------------ None Game ------ Seed BattleSlugConstruct Manual? 0 Play Time 03:28:14 Cumulative 52.9 hours Start 2026.09.02 @ 13:44:30 End 2026.09.03 @ 16:11:24 Sessions 12 Manual Loads 0 Difficulty Rogue Special Mode None Game No. 131 Rogue 131 Adventurer 0 Explorer 0 Win Type - Total 3 Types 3/0/0/0/0/0/0/0/0/0 Lore% 47 Gallery% 41 Achievement% 43 Wizard Run 0 Options --------- Layout 2 ASCII 0 Keyboard 0 Movement Arrows Keybinds 0 Fullscreen 1 Font 16/SmallcapsGlow Map View 50x49 Zoom Use 0% Tactical HUD 1 Map Filters NONE Filters NONE Steam SD RUN: b7a048e8-c75c-4e1b-8a08-9ee333bb759a